[Event "GER-chT Youth Countries 2020"]
[Site "Berlin"]
[Date "2020.10.02"]
[Round "5"]
[White "Poetsch, Leonore"]
[Black "Ley, Sabrina"]
[Result "1-0"]
[ECO "B94"]
[WhiteElo "1984"]
[BlackElo "1871"]
[Annotator "ChessBase"]
[PlyCount "46"]
[EventDate "2020.09.30"]
[EventType "team-tourn"]
[EventRounds "7"]
[EventCountry "GER"]
[SourceTitle "playchess.com"]
[Source "ChessBase"]
[SourceQuality "1"]
[TimeControl "30/5400+30:0"]

1. e4 {[%emt 0:00:00]} c5 {[%emt 0:00:00]} 2. Nf3 {[%emt 0:00:00]} d6 {[%emt 0:00:00]} 3. d4 {[%emt 0:00:09]} cxd4 {[%emt 0:00:00]} 4. Nxd4 {[%emt 0:00:06]} Nf6 {[%emt 0:00:00]} 5. Nc3 {[%emt 0:00:11]} a6 {[%emt 0:00:05]} 6. Bg5 {[%emt 0:00:24]} Nbd7 {[%emt 0:00:14]} 7. f4 {[%emt 0:00:57]} e6 {[%emt 0:08:33]} 8. Qf3 {[%emt 0:01:47]} Qc7 {[%emt 0:03:37]} 9. O-O-O {[%emt 0:01:23]} b5 {[%emt 0:04:24]} 10. a3 {[%emt 0:06:07]} Bb7 11. g4 {[%emt 0:03:54]} Be7 {[%emt 0:08:47]} 12. Bxf6 {[%emt 0:03:46]} gxf6 {[%emt 0:07:40]} 13. h4 {[%emt 0:06:58]} Nb6 {[%emt 0:03:48]} 14. g5 {[%emt 0:05:57]} Rc8 {[%emt 0:10:01]} 15. Qh5 {[%emt 0:07:08]} Na4 {[%emt 0:13:48]} 16. Nxe6 {[%emt 0:09:21]} Qc6 {[%emt 0:03:20]} 17. Nd4 {[%emt 0:04:17]} Qc5 {[%emt 0:04:16]} 18. Nxa4 {[%emt 0:07:06]} bxa4 {[%emt 0:00:58]} 19. Bh3 {[%emt 0:04:28]} Rc7 {[%emt 0:05:24]} 20. Be6 {[%emt 0:08:10]} Bxe4 {[%emt 0:07:14]} 21. Bxf7+ {[%emt 0:04:52]} Kd7 {[%emt 0:00:08]} 22. Be6+ {[%emt 0:03:25]} Kd8 {[%emt 0:00:20]} 23. Rh2 {[%emt 0:01:38]} Qb6 {[%emt 0:03:49]} 1-0

[Event "GER-chT Youth Countries 2020"]
[Site "Berlin"]
[Date "2020.10.02"]
[Round "5"]
[White "Bardorz, Jana"]
[Black "Wagner, Margarethe"]
[Result "1-0"]
[ECO "B20"]
[WhiteElo "1960"]
[BlackElo "1804"]
[Annotator "ChessBase"]
[PlyCount "105"]
[EventDate "2020.09.30"]
[EventType "team-tourn"]
[EventRounds "7"]
[EventCountry "GER"]
[SourceTitle "playchess.com"]
[Source "ChessBase"]
[SourceQuality "1"]
[TimeControl "30/5400+30:0"]

1. e4 {[%emt 0:00:00]} c5 {[%emt 0:00:00]} 2. d3 {[%emt 0:00:00]} d6 {[%emt 0:01:17]} 3. f4 {[%emt 0:00:28]} Nc6 {[%emt 0:01:05]} 4. Nf3 {[%emt 0:00:49]} Nf6 {[%emt 0:03:33]} 5. Be2 {[%emt 0:01:35]} e6 {[%emt 0:03:23]} 6. O-O {[%emt 0:02:43]} Be7 {[%emt 0:01:11]} 7. Nc3 {[%emt 0:03:08]} Nd4 {[%emt 0:01:52]} 8. Nxd4 {[%emt 0:08:19]} cxd4 {[%emt 0:00:14]} 9. Nb1 {[%emt 0:00:31]} Bd7 {[%emt 0:03:42]} 10. c3 {[%emt 0:01:33]} Qb6 {[%emt 0:03:57]} 11. Qb3 {[%emt 0:06:07]} Qxb3 {[%emt 0:06:04]} 12. axb3 {[%emt 0:00:07]} e5 {[%emt 0:03:23]} 13. Nd2 {[%emt 0:04:25]} dxc3 {[%emt 0:05:47]} 14. bxc3 {[%emt 0:00:06]} exf4 {[%emt 0:00:41]} 15. Nf3 {[%emt 0:08:37]} O-O {[%emt 0:02:29]} 16. Bxf4 {[%emt 0:00:43]} Rfc8 {[%emt 0:00:59]} 17. c4 {[%emt 0:03:50]} h6 {[%emt 0:04:40]} 18. Bg3 {[%emt 0:04:56]} b5 {[%emt 0:07:40]} 19. Nd4 {[%emt 0:05:09]} bxc4 {[%emt 0:02:25]} 20. bxc4 {[%emt 0:00:08]} a5 {[%emt 0:00:22]} 21. Rfb1 {[%emt 0:03:16]} Ne8 {[%emt 0:03:14]} 22. Bd1 {[%emt 0:04:37]} Bf6 {[%emt 0:04:27]} 23. Bf2 {[%emt 0:01:46]} Rcb8 {[%emt 0:00:54]} 24. Kf1 {[%emt 0:12:15]} a4 {[%emt 0:03:12]} 25. h3 {[%emt 0:06:25]} Nc7 {[%emt 0:02:52]} 26. Rxb8+ {[%emt 0:02:19]} Rxb8 {[%emt 0:00:10]} 27. Ra2 {[%emt 0:00:27]} Ra8 {[%emt 0:05:43]} 28. Nf5 {[%emt 0:03:30]} Ra6 {[%emt 0:03:32]} 29. Ke2 {[%emt 0:06:13]} Bc3 {[%emt 0:04:06]} 30. Bd4 {[%emt 0:01:30]} Bxd4 {[%emt 0:00:58]} 31. Nxd4 {[%emt 1:30:05]} Kf8 {[%emt 1:31:38]} 32. Kd2 {[%emt 0:00:07]} Ne6 {[%emt 0:03:03]} 33. Nb5 {[%emt 0:01:05]} Nc5 {[%emt 0:00:23]} 34. Bc2 {[%emt 0:01:36]} Bxb5 {[%emt 0:04:03]} 35. cxb5 {[%emt 0:00:08]} Rb6 {[%emt 0:00:04]} 36. d4 {[%emt 0:02:40]} Ne6 {[%emt 0:00:20]} 37. Bxa4 {[%emt 0:02:37]} Nxd4 {[%emt 0:00:11]} 38. Kd3 {[%emt 0:02:32]} Ne6 {[%emt 0:01:56]} 39. Kc4 {[%emt 0:00:03]} f6 {[%emt 0:11:17]} 40. Kb4 {[%emt 0:01:27]} Nc5 {[%emt 0:01:15]} 41. Bc2 {[%emt 0:01:34]} Rb7 {[%emt 0:01:33]} 42. Ra8+ {[%emt 0:00:00]} Ke7 {[%emt 0:00:00]} 43. Ka5 {[%emt 0:00:00]} Ke6 {[%emt 0:00:00]} 44. b6 {[%emt 0:00:00]} Nd7 {[%emt 0:00:00]} 45. Ra7 {[%emt 0:00:00]} Rb8 {[%emt 0:00:00]} 46. Bb3+ {[%emt 0:00:00]} d5 {[%emt 0:00:00]} 47. Bxd5+ {[%emt 0:00:00]} Kd6 {[%emt 0:00:00]} 48. Rc7 {[%emt 0:00:00]} h5 {[%emt 0:00:00]} 49. Rc6+ {[%emt 0:00:00]} Ke7 {[%emt 0:00:00]} 50. b7 {[%emt 0:00:00]} Kd8 {[%emt 0:00:00]} 51. Rc3 {[%emt 0:00:00]} Ne5 {[%emt 0:00:00]} 52. Ka6 {[%emt 0:00:00]} Nd7 {[%emt 0:00:00]} 53. Ka7 {[%emt 0:00:00]} 1-0

[Event "GER-chT Youth Countries 2020"]
[Site "Berlin"]
[Date "2020.10.02"]
[Round "5"]
[White "Zackrisson, Peter"]
[Black "Tovmasyan, Minas"]
[Result "1-0"]
[ECO "B42"]
[WhiteElo "1947"]
[BlackElo "1658"]
[Annotator "ChessBase"]
[PlyCount "77"]
[EventDate "2020.09.30"]
[EventType "team-tourn"]
[EventRounds "7"]
[EventCountry "GER"]
[SourceTitle "playchess.com"]
[Source "ChessBase"]
[SourceQuality "1"]
[TimeControl "30/5400+30:0"]

1. e4 {[%emt 0:00:00]} c5 {[%emt 0:00:00]} 2. Nf3 {[%emt 0:00:00]} e6 {[%emt 0:00:00]} 3. d4 {[%emt 0:00:00]} cxd4 {[%emt 0:00:02]} 4. Nxd4 {[%emt 0:00:07]} a6 {[%emt 0:00:07]} 5. Bd3 {[%emt 0:00:25]} Qc7 {[%emt 0:00:35]} 6. O-O {[%emt 0:00:54]} Nf6 {[%emt 0:00:33]} 7. Qe2 {[%emt 0:01:09]} d6 {[%emt 0:02:11]} 8. c4 {[%emt 0:00:50]} b6 {[%emt 0:02:15]} 9. Nc3 {[%emt 0:01:26]} Be7 {[%emt 0:01:34]} 10. f4 {[%emt 0:02:22]} O-O {[%emt 0:21:19]} 11. Kh1 {[%emt 0:05:38]} Bb7 {[%emt 0:07:27]} 12. Be3 {[%emt 0:06:12]} Nbd7 {[%emt 0:02:28]} 13. Bg1 {[%emt 0:02:52]} Rac8 {[%emt 0:07:23]} 14. Rac1 {[%emt 0:06:18]} Rfd8 {[%emt 0:16:21]} 15. Rf3 {[%emt 0:06:38]} Nc5 {[%emt 0:02:38]} 16. Bb1 {[%emt 0:03:15]} Bf8 {[%emt 0:09:16]} 17. Rff1 {[%emt 0:23:06]} Re8 {[%emt 0:08:31]} 18. e5 {[%emt 0:05:54]} dxe5 {[%emt 0:09:48]} 19. fxe5 {[%emt 0:00:54]} Nfd7 {[%emt 0:01:14]} 20. b4 {[%emt 0:00:34]} Nxe5 {[%emt 0:02:48]} 21. bxc5 {[%emt 0:01:14]} Bxc5 {[%emt 0:00:25]} 22. Ne4 {[%emt 0:05:39]} Ng6 {[%emt 0:03:00]} 23. Nxc5 {[%emt 0:04:02]} bxc5 {[%emt 0:00:01]} 24. Nb3 {[%emt 0:00:58]} Qe7 {[%emt 0:01:22]} 25. Be4 {[%emt 0:01:05]} Bxe4 {[%emt 0:00:38]} 26. Qxe4 {[%emt 0:00:09]} Red8 {[%emt 0:00:17]} 27. Rfd1 {[%emt 0:00:35]} Qg5 {[%emt 0:00:24]} 28. Be3 {[%emt 0:03:18]} Qh5 {[%emt 0:00:23]} 29. Rxd8+ {[%emt 0:00:59]} Rxd8 {[%emt 0:00:01]} 30. Nxc5 {[%emt 0:00:52]} Qe2 {[%emt 0:00:59]} 31. Bg1 {[%emt 1:33:10]} Qd2 {[%emt 1:30:45]} 32. Qc2 {[%emt 0:00:12]} Qg5 {[%emt 0:00:42]} 33. Ne4 {[%emt 0:00:44]} Qf4 {[%emt 0:00:21]} 34. c5 {[%emt 0:00:44]} f5 {[%emt 0:00:32]} 35. Nd6 {[%emt 0:00:46]} Qe5 {[%emt 0:00:36]} 36. Qc3 {[%emt 0:00:19]} Qe2 {[%emt 0:00:24]} 37. Qc4 {[%emt 0:00:09]} Qe5 {[%emt 0:00:32]} 38. Bd4 {[%emt 0:00:10]} Qf4 {[%emt 0:00:29]} 39. Qxe6+ {[%emt 0:00:17]} 1-0

[Event "GER-chT Youth Countries 2020"]
[Site "Berlin"]
[Date "2020.10.02"]
[Round "5"]
[White "Moenster, Madita"]
[Black "Haubold, Sebastian Marcel"]
[Result "1/2-1/2"]
[ECO "C70"]
[WhiteElo "1918"]
[BlackElo "1769"]
[Annotator "ChessBase"]
[PlyCount "158"]
[EventDate "2020.09.30"]
[EventType "team-tourn"]
[EventRounds "7"]
[EventCountry "GER"]
[SourceTitle "playchess.com"]
[Source "ChessBase"]
[SourceQuality "1"]
[TimeControl "30/5400+30:0"]

1. e4 {[%emt 0:00:00]} e5 {[%emt 0:00:00]} 2. Nf3 {[%emt 0:00:00]} Nc6 {[%emt 0:00:00]} 3. Bb5 {[%emt 0:00:00]} a6 {[%emt 0:00:00]} 4. Ba4 {[%emt 0:00:00]} g6 {[%emt 0:00:00]} 5. c3 {[%emt 0:01:24]} Bg7 {[%emt 0:00:36]} 6. d4 {[%emt 0:05:37]} exd4 {[%emt 0:01:02]} 7. cxd4 {[%emt 0:00:08]} b5 {[%emt 0:00:37]} 8. Bc2 {[%emt 0:01:24]} d6 {[%emt 0:02:09]} 9. h3 {[%emt 0:01:26]} Nf6 {[%emt 0:03:16]} 10. O-O {[%emt 0:00:59]} O-O {[%emt 0:02:14]} 11. Re1 {[%emt 0:02:22]} Bb7 {[%emt 0:03:10]} 12. Bf4 {[%emt 0:05:02]} Re8 {[%emt 0:04:03]} 13. Nbd2 Rc8 {[%emt 0:07:56]} 14. a4 {[%emt 0:18:04]} Nb4 {[%emt 0:19:48]} 15. Bb1 {[%emt 0:03:09]} c5 16. axb5 {[%emt 0:06:17]} axb5 {[%emt 0:03:10]} 17. Qb3 {[%emt 0:01:14]} h6 {[%emt 0:08:57]} 18. e5 {[%emt 0:08:15]} Nfd5 {[%emt 0:03:23]} 19. Bg3 {[%emt 0:02:29]} c4 {[%emt 0:01:59]} 20. Qd1 {[%emt 0:01:05]} dxe5 21. Nxe5 {[%emt 0:04:58]} Nc6 {[%emt 0:06:00]} 22. Ndf3 {[%emt 0:01:52]} Ndb4 {[%emt 0:03:20]} 23. Qd2 {[%emt 0:04:47]} Nxe5 {[%emt 0:00:45]} 24. Nxe5 {[%emt 0:02:48]} Nc6 {[%emt 0:00:46]} 25. Nxc6 {[%emt 0:08:30]} Rxe1+ 26. Qxe1 {[%emt 0:00:05]} Bxc6 {[%emt 0:00:57]} 27. Be5 {[%emt 0:02:14]} Qg5 {[%emt 0:02:53]} 28. Be4 {[%emt 0:02:04]} Bxe5 {[%emt 0:00:08]} 29. Bxc6 {[%emt 0:01:17]} Bxd4 {[%emt 0:00:26]} 30. Rd1 {[%emt 0:08:50]} Bxf2+ {[%emt 0:05:00]} 31. Qxf2 {[%emt 1:30:14]} Rxc6 {[%emt 1:30:06]} 32. Kh1 {[%emt 0:01:18]} Kg7 {[%emt 0:04:05]} 33. Qf3 {[%emt 0:02:29]} Qf6 {[%emt 0:05:54]} 34. Qe2 {[%emt 0:01:30]} b4 {[%emt 0:00:36]} 35. Rf1 {[%emt 0:01:42]} Qd4 36. Rd1 {[%emt 0:01:05]} Qc5 {[%emt 0:04:44]} 37. Qe8 {[%emt 0:02:47]} Rc8 {[%emt 0:00:23]} 38. Qd7 {[%emt 0:00:30]} c3 {[%emt 0:01:12]} 39. bxc3 {[%emt 0:00:28]} bxc3 {[%emt 0:00:08]} 40. Rf1 {[%emt 0:00:23]} Rf8 {[%emt 0:00:39]} 41. Qd3 {[%emt 0:01:08]} c2 {[%emt 0:00:15]} 42. Rc1 {[%emt 0:00:00]} Rc8 {[%emt 0:00:00]} 43. Qe2 {[%emt 0:00:00]} Qc3 {[%emt 0:00:00]} 44. Qf2 {[%emt 0:00:00]} Qb2 {[%emt 0:00:00]} 45. Qd2 {[%emt 0:00:00]} Qc3 {[%emt 0:00:00]} 46. Qe2 {[%emt 0:00:00]} Rc6 {[%emt 0:00:00]} 47. Qf2 {[%emt 0:00:00]} Qd3 {[%emt 0:00:00]} 48. Qe1 {[%emt 0:00:00]} Re6 {[%emt 0:00:00]} 49. Qg1 {[%emt 0:00:00]} Rd6 {[%emt 0:00:00]} 50. Kh2 {[%emt 0:00:00]} Qd1 {[%emt 0:00:00]} 51. Qe3 {[%emt 0:00:00]} Kh7 {[%emt 0:00:00]} 52. Qf2 {[%emt 0:00:00]} Qd5 {[%emt 0:00:00]} 53. Qxc2 {[%emt 0:00:00]} Qe5+ {[%emt 0:00:00]} 54. Kh1 {[%emt 0:00:00]} Qf4 {[%emt 0:00:00]} 55. Rd1 {[%emt 0:00:00]} Rf6 {[%emt 0:00:00]} 56. Qd2 {[%emt 0:00:16]} Qg3 {[%emt 0:01:02]} 57. Qd3 {[%emt 0:01:19]} Qxd3 {[%emt 0:01:13]} 58. Rxd3 {[%emt 0:00:06]} Rf1+ {[%emt 0:00:04]} 59. Kh2 {[%emt 0:00:05]} g5 {[%emt 0:00:27]} 60. g4 {[%emt 0:00:45]} h5 {[%emt 0:02:50]} 61. Kg3 {[%emt 1:32:14]} Kg6 {[%emt 1:34:00]} 62. Rd6+ {[%emt 0:01:31]} f6 {[%emt 0:00:19]} 63. Rd4 {[%emt 0:00:56]} hxg4 {[%emt 0:04:04]} 64. hxg4 {[%emt 0:00:09]} f5 {[%emt 0:01:31]} 65. gxf5+ {[%emt 0:00:07]} Kxf5 {[%emt 0:01:10]} 66. Rd5+ {[%emt 0:00:56]} Kf6 {[%emt 0:00:08]} 67. Rb5 {[%emt 0:01:03]} Kg6 {[%emt 0:01:00]} 68. Kg4 {[%emt 0:01:17]} Rg1+ {[%emt 0:00:27]} 69. Kh3 {[%emt 0:00:54]} Kh5 {[%emt 0:00:23]} 70. Rb8 {[%emt 0:00:55]} Ra1 {[%emt 0:02:53]} 71. Rb3 {[%emt 0:01:22]} Ra4 {[%emt 0:01:19]} 72. Kg3 {[%emt 0:00:18]} Rh4 {[%emt 0:00:52]} 73. Ra3 {[%emt 0:00:39]} Rh1 {[%emt 0:00:41]} 74. Kg2 {[%emt 0:01:03]} Rh4 {[%emt 0:00:56]} 75. Kg3 {[%emt 0:00:18]} Rg4+ {[%emt 0:00:10]} 76. Kh3 {[%emt 0:00:32]} Rg1 {[%emt 0:00:53]} 77. Kh2 {[%emt 0:00:25]} Rd1 {[%emt 0:00:41]} 78. Kg3 {[%emt 0:00:14]} Rd4 {[%emt 0:00:12]} 79. Rb3 {[%emt 0:00:38]} Rg4+ {[%emt 0:00:22]} 1/2-1/2

[Event "GER-chT Youth Countries 2020"]
[Site "Berlin"]
[Date "2020.10.02"]
[Round "5"]
[White "Dietz, Kristin"]
[Black "Hommer, Jeremy"]
[Result "0-1"]
[ECO "B15"]
[WhiteElo "1913"]
[BlackElo "2246"]
[Annotator "ChessBase"]
[PlyCount "94"]
[EventDate "2020.09.30"]
[EventType "team-tourn"]
[EventRounds "7"]
[EventCountry "GER"]
[SourceTitle "playchess.com"]
[Source "ChessBase"]
[SourceQuality "1"]
[TimeControl "30/5400+30:0"]

1. e4 {[%emt 0:00:00]} c6 {[%emt 0:00:00]} 2. d4 {[%emt 0:00:00]} d5 {[%emt 0:00:00]} 3. Nd2 {[%emt 0:00:00]} dxe4 {[%emt 0:00:00]} 4. Nxe4 {[%emt 0:00:12]} Nf6 {[%emt 0:00:26]} 5. Nxf6+ {[%emt 0:00:30]} exf6 {[%emt 0:00:30]} 6. c3 {[%emt 0:00:30]} Bd6 {[%emt 0:00:30]} 7. Bd3 {[%emt 0:00:30]} O-O {[%emt 0:00:30]} 8. Qc2 {[%emt 0:00:30]} Re8+ {[%emt 0:00:30]} 9. Ne2 {[%emt 0:00:30]} h5 {[%emt 0:00:30]} 10. O-O {[%emt 0:00:30]} h4 {[%emt 0:00:30]} 11. h3 {[%emt 0:00:30]} Nd7 {[%emt 0:02:26]} 12. Be3 {[%emt 0:00:00]} Nf8 {[%emt 0:08:09]} 13. Rfd1 {[%emt 0:06:19]} Be6 {[%emt 0:02:33]} 14. c4 {[%emt 0:01:10]} Rc8 {[%emt 0:03:42]} 15. Rac1 {[%emt 0:02:21]} Bb8 {[%emt 0:15:55]} 16. Qb1 {[%emt 0:12:53]} g5 {[%emt 0:08:39]} 17. d5 {[%emt 0:02:01]} cxd5 {[%emt 0:01:35]} 18. cxd5 {[%emt 0:01:03]} Rxc1 {[%emt 0:00:53]} 19. Qxc1 {[%emt 0:13:51]} Bc8 {[%emt 0:08:35]} 20. Nc3 {[%emt 0:10:37]} Kg7 {[%emt 0:05:17]} 21. Bb5 {[%emt 0:12:59]} Bd7 {[%emt 0:04:07]} 22. Bd4 {[%emt 0:03:50]} Bf4 {[%emt 0:05:48]} 23. Qc2 {[%emt 0:00:18]} Bxb5 {[%emt 0:10:58]} 24. Nxb5 {[%emt 0:18:42]} Qxd5 {[%emt 0:05:03]} 25. Qa4 {[%emt 0:01:06]} Qe4 {[%emt 0:04:21]} 26. f3 {[%emt 0:01:14]} Qc6 {[%emt 0:01:22]} 27. Bxa7 {[%emt 0:06:57]} Re5 28. Nc3 {[%emt 0:00:08]} Qxa4 {[%emt 0:00:45]} 29. Nxa4 {[%emt 0:01:26]} Ra5 {[%emt 0:00:34]} 30. Bc5 {[%emt 0:01:10]} Rxa4 {[%emt 0:00:41]} 31. a3 {[%emt 1:30:35]} Rc4 {[%emt 1:31:05]} 32. b4 {[%emt 0:01:41]} Ne6 {[%emt 0:03:09]} 33. Rd7 {[%emt 0:00:06]} Nxc5 {[%emt 0:00:21]} 34. bxc5 {[%emt 0:00:10]} Be3+ {[%emt 0:00:21]} 35. Kf1 {[%emt 0:00:20]} Bxc5 {[%emt 0:00:27]} 36. Rxb7 {[%emt 0:00:05]} Rc1+ {[%emt 0:00:06]} 37. Ke2 {[%emt 0:00:48]} Rc2+ {[%emt 0:00:06]} 38. Kd3 {[%emt 0:00:11]} Rxg2 {[%emt 0:01:47]} 39. a4 {[%emt 0:00:16]} Rg3 {[%emt 0:00:08]} 40. Kc4 {[%emt 0:00:19]} Bf2 {[%emt 0:00:28]} 41. a5 {[%emt 0:00:39]} Rxf3 {[%emt 0:00:53]} 42. Rb2 {[%emt 0:00:43]} f5 {[%emt 0:00:19]} 43. a6 g4 {[%emt 0:00:10]} 44. hxg4 {[%emt 0:01:39]} fxg4 {[%emt 0:00:29]} 45. Ra2 {[%emt 0:00:34]} g3 46. a7 {[%emt 0:00:05]} Bxa7 {[%emt 0:00:45]} 47. Rxa7 g2 0-1

[Event "GER-chT Youth Countries 2020"]
[Site "Berlin"]
[Date "2020.10.02"]
[Round "5"]
[White "Halabi, Ibrahim"]
[Black "Bakiev, Diyor"]
[Result "1/2-1/2"]
[ECO "B13"]
[WhiteElo "1895"]
[BlackElo "2070"]
[Annotator "ChessBase"]
[PlyCount "67"]
[EventDate "2020.09.30"]
[EventType "team-tourn"]
[EventRounds "7"]
[EventCountry "GER"]
[SourceTitle "playchess.com"]
[Source "ChessBase"]
[SourceQuality "1"]
[TimeControl "30/5400+30:0"]

1. e4 c6 2. d4 d5 3. exd5 cxd5 4. c4 Nf6 5. Nc3 Nc6 6. Nf3 Bg4 7. cxd5 Nxd5 8. Qb3 Bxf3 9. gxf3 e6 10. Qxb7 Nxd4 11. Bb5+ Nxb5 12. Qc6+ Ke7 13. Qxb5 Qd7 14. Qxd7+ Kxd7 15. Nxd5 exd5 16. Be3 Bb4+ 17. Ke2 Rhc8 18. Rac1 a5 19. Rxc8 {[%emt 0:07:54]} Rxc8 {[%emt 0:21:40]} 20. Rc1 {[%emt 0:02:45]} Rb8 {[%emt 0:00:57]} 21. Bd4 {[%emt 0:00:33]} g6 {[%emt 0:00:42]} 22. a3 {[%emt 0:01:03]} Bd6 {[%emt 0:03:01]} 23. h3 {[%emt 0:02:48]} a4 {[%emt 0:00:30]} 24. Kd3 {[%emt 0:00:23]} Rb3+ {[%emt 0:01:29]} 25. Ke2 {[%emt 0:02:06]} h5 {[%emt 0:10:43]} 26. Rc2 {[%emt 0:00:46]} Rb5 {[%emt 0:10:30]} 27. Kd3 {[%emt 0:05:22]} Be7 {[%emt 0:04:35]} 28. Ke3 {[%emt 0:00:46]} Bg5+ {[%emt 0:01:35]} 29. Kd3 {[%emt 0:00:14]} Rb3+ {[%emt 0:00:30]} 30. Ke2 {[%emt 0:00:46]} Be7 {[%emt 0:08:41]} 31. Rc1 {[%emt 1:30:19]} Bd6 {[%emt 1:31:18]} 32. Rc2 {[%emt 0:00:21]} Rb8 {[%emt 0:06:14]} 33. Kd3 {[%emt 0:00:37]} Rb5 34. Rc1 1/2-1/2

[Event "GER-chT Youth Countries 2020"]
[Site "Berlin"]
[Date "2020.10.02"]
[Round "5"]
[White "Grossmann, Piet"]
[Black "Tiarks, Jann-Christian"]
[Result "1/2-1/2"]
[ECO "B90"]
[WhiteElo "1849"]
[BlackElo "2151"]
[Annotator "ChessBase"]
[PlyCount "52"]
[EventDate "2020.09.30"]
[EventType "team-tourn"]
[EventRounds "7"]
[EventCountry "GER"]
[SourceTitle "playchess.com"]
[Source "ChessBase"]
[SourceQuality "1"]
[TimeControl "30/5400+30:0"]

1. e4 {[%emt 0:00:00]} c5 {[%emt 0:00:00]} 2. Nf3 {[%emt 0:00:00]} d6 {[%emt 0:00:00]} 3. d4 {[%emt 0:00:00]} cxd4 {[%emt 0:00:00]} 4. Nxd4 {[%emt 0:00:00]} Nf6 {[%emt 0:00:03]} 5. Nc3 {[%emt 0:00:00]} a6 {[%emt 0:00:07]} 6. Be3 {[%emt 0:00:12]} e5 {[%emt 0:00:08]} 7. Nb3 {[%emt 0:00:12]} Be6 {[%emt 0:00:07]} 8. f3 {[%emt 0:00:16]} Be7 {[%emt 0:00:08]} 9. Qd2 {[%emt 0:00:04]} h5 {[%emt 0:01:09]} 10. Nd5 {[%emt 0:15:39]} Nxd5 {[%emt 0:00:10]} 11. exd5 {[%emt 0:00:02]} Bf5 {[%emt 0:00:08]} 12. Bd3 {[%emt 0:00:46]} Bxd3 {[%emt 0:01:33]} 13. Qxd3 {[%emt 0:00:03]} Bg5 {[%emt 0:01:50]} 14. O-O-O {[%emt 0:03:09]} Bxe3+ {[%emt 0:02:00]} 15. Qxe3 {[%emt 0:00:04]} Nd7 {[%emt 0:00:10]} 16. Nd2 {[%emt 0:15:18]} O-O {[%emt 0:06:33]} 17. Ne4 {[%emt 0:02:15]} Nf6 {[%emt 0:05:31]} 18. Nxf6+ {[%emt 0:15:51]} Qxf6 {[%emt 0:00:10]} 19. h4 {[%emt 0:02:46]} Rac8 {[%emt 0:01:27]} 20. Qg5 {[%emt 0:03:20]} Qxg5+ {[%emt 0:01:43]} 21. hxg5 {[%emt 0:00:03]} g6 {[%emt 0:00:06]} 22. Rh4 {[%emt 0:00:46]} Rfd8 {[%emt 0:09:07]} 23. b3 {[%emt 0:04:57]} Rc5 {[%emt 0:01:48]} 24. Kb2 {[%emt 0:00:31]} Rdc8 {[%emt 0:00:41]} 25. Rd2 {[%emt 0:00:04]} b5 {[%emt 0:02:14]} 26. a4 {[%emt 0:01:48]} Kf8 {[%emt 0:05:45]} 1/2-1/2

[Event "GER-chT Youth Countries 2020"]
[Site "Berlin"]
[Date "2020.10.02"]
[Round "5"]
[White "Viet, Silas"]
[Black "Hoppstaedter, Daniel"]
[Result "1-0"]
[ECO "A45"]
[WhiteElo "1846"]
[BlackElo "1712"]
[Annotator "NA"]
[PlyCount "79"]
[EventDate "2020.09.30"]
[EventType "team-tourn"]
[EventRounds "7"]
[EventCountry "GER"]
[SourceTitle "playchess.com"]
[Source "ChessBase"]
[SourceQuality "1"]
[TimeControl "30/5400+30:0"]

1. d4 {[%emt 0:00:00]} Nf6 {[%emt 0:00:00]} 2. Bf4 {[%emt 0:00:00]} g6 {[%emt 0:00:00]} 3. Nc3 {[%emt 0:00:00]} d5 {[%emt 0:00:00]} 4. h4 {[%emt 0:00:00]} Bg7 {[%emt 0:00:00]} 5. e3 {[%emt 0:00:00]} h5 {[%emt 0:00:01]} 6. Bd3 {[%emt 0:00:08]} O-O {[%emt 0:00:24]} 7. Qe2 {[%emt 0:00:51]} c5 {[%emt 0:00:59]} 8. Qd2 {[%emt 0:01:58]} Nc6 {[%emt 0:02:03]} 9. Nf3 {[%emt 0:01:52]} c4 {[%emt 0:07:02]} 10. Be2 {[%emt 0:00:30]} b5 {[%emt 0:01:42]} 11. a3 {[%emt 0:04:15]} Bf5 {[%emt 0:01:01]} 12. Ne5 {[%emt 0:04:12]} Qb6 {[%emt 0:02:58]} 13. Bf3 {[%emt 0:06:20]} Rfd8 {[%emt 0:00:43]} 14. O-O {[%emt 0:03:12]} a5 {[%emt 0:01:47]} 15. Rfe1 {[%emt 0:01:26]} e6 {[%emt 0:03:20]} 16. Bg5 {[%emt 0:03:37]} b4 {[%emt 0:07:15]} 17. Na4 {[%emt 0:05:12]} Qb5 {[%emt 0:01:26]} 18. Nxc6 {[%emt 0:09:31]} Qxc6 {[%emt 0:00:02]} 19. Nc5 {[%emt 0:01:21]} Qb6 {[%emt 0:10:37]} 20. b3 {[%emt 0:12:53]} c3 {[%emt 0:02:45]} 21. Qd1 {[%emt 0:00:08]} Re8 {[%emt 0:01:02]} 22. Be2 {[%emt 0:06:26]} Nh7 {[%emt 0:01:08]} 23. Bd3 {[%emt 0:02:30]} Bxd3 {[%emt 0:02:02]} 24. Nxd3 {[%emt 0:04:40]} f6 {[%emt 0:01:10]} 25. Bf4 {[%emt 0:00:27]} e5 {[%emt 0:00:13]} 26. dxe5 {[%emt 0:04:59]} fxe5 {[%emt 0:01:20]} 27. Bg3 {[%emt 0:00:32]} e4 {[%emt 0:04:38]} 28. Nf4 {[%emt 0:00:41]} d4 {[%emt 0:04:23]} 29. exd4 {[%emt 0:09:55]} Bxd4 {[%emt 0:01:49]} 30. Nd5 {[%emt 0:10:11]} Qc5 {[%emt 0:00:55]} 31. Nc7 {[%emt 1:30:15]} Rf8 {[%emt 1:32:07]} 32. Rf1 {[%emt 0:03:16]} Rad8 {[%emt 0:11:56]} 33. Ne6 {[%emt 0:01:38]} Qb6 {[%emt 0:01:10]} 34. Nxd8 {[%emt 0:00:22]} Rxd8 {[%emt 0:00:25]} 35. Qe2 {[%emt 0:00:15]} Nf6 {[%emt 0:02:52]} 36. axb4 {[%emt 0:00:31]} axb4 {[%emt 0:00:15]} 37. Ra6 {[%emt 0:01:01]} Qb7 {[%emt 0:01:23]} 38. Kh1 {[%emt 0:01:34]} Bb6 {[%emt 0:01:03]} 39. Qb5 {[%emt 0:01:48]} Nd5 {[%emt 0:01:44]} 40. Rd1 {[%emt 0:00:29]} 1-0